Cogmind - Beta 14 @@@ ROGUE MODE // 2024.11.13 @ 07:20:06 Player: TempBlind Result: Destroyed by Y-54 Guardian with Gatling Laser Performance ------------- Evolutions (3) 1500 Regions Visited (7) 1400 Robots Destroyed (55) 275 Value Destroyed (2204) 2204 Prototype IDs (23) 460 Alien Tech Used (0) 0 Bonus (300) 300 TOTAL SCORE: 6139 Bonus ------- Aligned with FarCom 300 Cogmind --------- Core Integrity 0/700 Matter 9/300 Energy 210/210 System Corruption 26% Temperature Cool (54) Movement Treading (240) Ox1 Location -7/Storage Parts ------- > --- POWER (3) -------- Light Nuclear Core Micro Nuclear Core > --- PROPULSION (2) --- Light Treads > --- UTILITY (5) ------ Advanced Visual Processing Unit Improved Terrain Scanner Modified TNC Weapon Cycler Weapon Cycler > --- WEAPON (3) ------- Flak Gun Flak Gun > --- INVENTORY (5) ---- Micro Nuclear Core Xenon Bombardment Thruster Xenon Bombardment Thruster Compact Matter Pod (150) Targeting Computer Peak State ------------ > --- POWER ------------ Light Nuclear Core Micro Nuclear Core Micro Nuclear Core > --- PROPULSION ------- Xenon Bombardment Thruster Xenon Bombardment Thruster > --- UTILITY ---------- Advanced Visual Processing Unit Improved Terrain Scanner Modified TNC Weapon Cycler Weapon Cycler > --- WEAPON ----------- Flak Gun Flak Gun Flak Gun > --- INVENTORY -------- Compact Matter Pod Targeting Computer [Rating: 51] Favorites ----------- Power Light Ion Engine Engine Light Ion Engine Power Core Nuclear Core Propulsion Aluminum Leg Treads Light Treads Leg Aluminum Leg Wheel Wheel Hover Unit Antigrav System Flight Unit Xenon Bombardment Thruster Utility Modified TNC Device Improved Terrain Scanner Storage Compact Matter Pod Processor Modified TNC Protection Light Armor Plating Weapon Assault Rifle Energy Gun Small Laser Ballistic Gun Assault Rifle Ballistic Cannon Flak Cannon Launcher Grenade Launcher Impact Weapon Heavy Mace Build | -11 -10 -10 -10 -9 -8 -7 -7 ------- Run | Yrd Mat Min Exi Min Mat Fac Sto Slots Evolved 6 | . . . . . 4 2 . Power 2 | . . . . . 1 1 . Propulsion . | . . . . . . . . Utility 3 | . . . . . 3 . . Weapon 1 | . . . . . . 1 . Parts Attached 85 | 11 3 . 1 2 30 9 29 Power 17 | 2 . . . 1 7 3 4 Engine 10 | 2 . . . 1 4 2 1 Core 7 | . . . . . 3 1 3 Reactor . | . . . . . . . . Propulsion 28 | 5 . . . 1 7 3 12 Treads 8 | . . . . . 4 . 4 Leg 14 | 4 . . . 1 3 2 4 Wheel 1 | 1 . . . . . . . Hover 1 | . . . . . . 1 . Flight 4 | . . . . . . . 4 Utility 22 | 2 1 . 1 . 9 2 7 Device 10 | 2 . . . . 3 1 4 Storage 3 | . . . . . 3 . . Processor 4 | . 1 . 1 . . . 2 Hackware . | . . . . . . . . Protection 5 | . . . . . 3 1 1 Artifact . | . . . . . . . . Weapon 18 | 2 2 . . . 7 1 6 Energy Gun 5 | 2 . . . . 1 1 1 Energy Cannon . | . . . . . . . . Ballistic Gun 7 | . 1 . . . 3 . 3 Ballistic Cannon 4 | . . . . . 3 . 1 Launcher 1 | . 1 . . . . . . Special Weapon . | . . . . . . . . Impact Weapon 1 | . . . . . . . 1 Slashing Weapon . | . . . . . . . . Piercing Weapon . | . . . . . . . . Special Melee Weapon . | . . . . . . . . Unidentified Prototypes . | . . . . . . . . Corrupted Parts 3 | . . . . . . . 3 System Corruption 18 | . . . . . . . 18 Parts Lost 32 | . . . . 1 9 11 11 Power 9 | . . . . 1 2 4 2 Propulsion 8 | . . . . . 2 3 3 Utility 6 | . . . . . 2 2 2 Weapon 9 | . . . . . 3 2 4 Highest Loss Streak 9 | . . . . 1 9 4 4 To Critical Strikes . | . . . . . . . . Average Slot Usage (%) 86 | . 100 100 100 98 94 81 68 Engine 8 | . 14 14 14 12 11 2 4 Core 4 | . . . . . 4 12 4 Treads 2 | . . . . . 10 . 1 Leg 14 | . 28 28 28 28 6 12 6 Device 12 | . 18 14 10 . 11 8 20 Storage 3 | . . . . . 9 7 1 Processor 16 | . 9 14 17 28 18 13 14 Protection 2 | . . . . . 4 4 . Energy Gun 1 | . 6 . . . 1 2 . Ballistic Gun 9 | . 12 14 14 14 8 6 6 Ballistic Cannon 2 | . . . . . 6 6 1 Launcher 4 | . 9 14 14 14 1 . . Impact Weapon 1 | . . . . . . . 4 Peak Build Rating 51 | 9 9 9 12 14 32 47 51 Average Rating 23 | 4 9 9 9 12 25 33 32 On Entrance 12 | . 9 9 9 12 14 31 19 Naked Turns . | . . . . . . . . Heaviest Build 40 | 7 9 9 9 10 31 40 32 Greatest Support 40 | 20 20 20 20 20 40 35 22 Greatest Overweight (x) 10 | . . . . . 3 4 10 Average Overweight (x) . | . . . . . . . . Largest Inventory Capacity 10 | 5 5 5 5 5 10 5 5 Average Capacity 5 | 5 5 5 5 5 5 5 5 Most Carried 5 | 5 5 5 4 5 5 5 5 Average Carried 3 | 2 2 2 2 4 4 4 4 Final Capacity 5 | 5 5 5 5 5 5 5 5 Final Carried 5 | 4 5 2 4 5 4 4 5 Class Distribution -------------------- 42% | Mutant 24% | Scavenger-Skirmisher 18% | Scavenger-Mutant 8% | Assassin 6% | Scavenger-Assassin Dominant Class ---------------- Mutant | -10/Materials Mutant | -10/Mines Mutant | -10/Exiles Mutant | -9/Mines Scavenger-Mutant | -8/Materials Scavenger-Mutant | -7/Factory Scavenger-Skirmisher | -7/Storage Resources | -11 -10 -10 -10 -9 -8 -7 -7 ----------- Run | Yrd Mat Min Exi Min Mat Fac Sto Matter Collected 1878 | 310 . 93 . 90 621 354 410 Remotely . | . . . . . . . . Salvage Created 1825 | 128 . . . 24 574 423 676 Parts 116 | 18 . . . . 46 24 28 Haulers Intercepted . | . . . . . . . . Recyclers Shooed 2 | . . . . . 1 . 1 Parts Field Recycled . | . . . . . . . . Retrieved Matter . | . . . . . . . . Parts Self-Destructed . | . . . . . . . . Prevented . | . . . . . . . . Kills | -11 -10 -10 -10 -9 -8 -7 -7 ------- Run | Yrd Mat Min Exi Min Mat Fac Sto Combat Hostiles Destroyed 46 | 1 . . . 5 15 13 12 Melee 4 | . . . . . . . 4 Guns 16 | 1 . . . . 7 4 4 Cannons 15 | . . . . . 6 9 . AOE 8 | . . . . 5 2 . 1 Classes Destroyed 13 | 3 . . . 1 5 2 2 Worker 2 | 1 . . . . . . 1 Builder 2 | . . . . . 1 . 1 Tunneler 4 | 4 . . . . . . . Mechanic 1 | . . . . . . . 1 Operator 1 | . . . . . . . 1 Watcher 4 | . . . . . 1 2 1 Swarmer 3 | . . . . . . 3 . Grunt 15 | 1 . . . . 5 5 4 Sentry 14 | . . . . . 6 3 5 Specialist 2 | . . . . . 2 . . Hunter 4 | . . . . . 2 1 1 Programmer 3 | . . . . . . 1 2 Assembled 5 | . . . . 5 . . . Best Kill Streak 5 | 5 . . . 3 4 5 3 Combat Bots Only 5 | 1 . . . 3 3 5 3 Max Kills in Single Turn 2 | 1 . . . 2 1 1 1 Gunslinging . | . . . . . . . . Exploded 2 | . . . . 2 1 . 1 Melee 1 | . . . . . . . 1 Uniques/NPCs Destroyed . | . . . . . . . . Combat | -11 -10 -10 -10 -9 -8 -7 -7 -------- Run | Yrd Mat Min Exi Min Mat Fac Sto Hostile Shots Fired 644 | 9 . 2 . 12 186 195 240 Missed 208 | 2 . 1 . 3 58 68 76 Damage Taken 4887 | 77 . 14 . 165 1546 1381 1704 Core 923 | . . . . 16 203 204 500 Absorbed by Shields 254 | . . . . . 254 . . Regen/Repaired (Parts) 64 | . . . . . . 64 . Core Remaining (%) 85 | 100 . . . 93 63 . . Volleys Fired 167 | 14 2 . . 5 67 45 34 Largest 3 | 2 1 . . 2 2 3 3 Hottest 136 | 80 20 . . 50 88 136 99 Shots Fired 317 | 28 2 . . 10 113 106 58 Gun 223 | 28 2 . . 5 73 62 53 Cannon 83 | . . . . . 34 44 5 Launcher 11 | . . . . 5 6 . . Special . | . . . . . . . . Kinetic 244 | . 2 . . 5 100 84 53 Thermal 57 | 28 . . . . 7 22 . Explosive 11 | . . . . 5 6 . . Electromagnetic 5 | . . . . . . . 5 Robot Hit Streak 17 | 4 . . . 2 17 8 9 Robot Miss Streak 10 | 3 2 . . 3 7 10 10 Penetration Max . | . . . . . . . . Secondary Targets . | . . . . . . . . Shots Hit Robots 263 | 18 . . . 4 88 77 76 Core Hits 173 | 7 . . . 10 58 57 41 Critical Kills . | . . . . . . . . Critical Parts Destroyed 5 | . . . . . . . 5 Critical Strikes 8 | . . . . . . 3 5 Burn 3 | . . . . . . 3 . Smash 5 | . . . . . . . 5 Melee Attacks 34 | . . . . . . . 34 Impact 34 | . . . . . . . 34 Slashing . | . . . . . . . . Piercing . | . . . . . . . . Sneak Attacks 7 | . . . . . . . 7 Combat Hostiles 1 | . . . . . . . 1 Follow-up Attacks . | . . . . . . . . Damage Inflicted 5751 | 212 2 . . 266 1579 1459 2233 Guns 2363 | 212 . . . 15 779 664 693 Cannons 1545 | . . . . . 683 787 75 Explosions 466 | . . . . 251 114 . 101 Melee 1361 | . . . . . . . 1361 Ramming 16 | . 2 . . . 3 8 3 Kinetic 3348 | . . . . 15 1400 1200 733 Thermal 626 | 212 . . . . 62 251 101 Explosive 365 | . . . . 251 114 . . Electromagnetic 35 | . . . . . . . 35 Impact 1361 | . . . . . . . 1361 Slashing . | . . . . . . . . Piercing . | . . . . . . . . Highest Corruption 26 | . . . . . . . 26 Average Corruption 16 | . . . . . . . 16 Corruption Purged . | . . . . . . . . Corruption Blocked . | . . . . . . . . Effects 21 | . . . . . . . 21 Message Errors 4 | . . . . . . . 4 Matter Fused 3 | . . . . . . . 3 Heat Flow Errors 4 | . . . . . . . 4 Data Loss (minor) 4 | . . . . . . . 4 Data Loss (major) 2 | . . . . . . . 2 Misfires 1 | . . . . . . . 1 Alerts 1 | . . . . . . . 1 Weapon Failures 2 | . . . . . . . 2 Overload Shots . | . . . . . . . . Overflow Damage 538 | . . . . . . . 538 Projectiles . | . . . . . . . . Explosions . | . . . . . . . . Melee 538 | . . . . . . . 538 Knockbacks 27 | . . . . . 15 9 3 Impact 2 | . . . . . . . 2 Kinetic 25 | . . . . . 15 9 1 Secondary . | . . . . . . . . Self-Inflicted Damage 72 | . . . . 29 17 . 26 Shots 4 | . . . . 2 1 . 1 Rammed 4 | . . . . . 1 . 3 Targets Rammed 8 | . 1 . . . 1 3 3 Kicked 4 | . 1 . . . . 3 . Crushed . | . . . . . . . . Highest Temperature 355 | 186 . . . . 274 355 259 Average Temperature 104 | 74 . . . . 80 165 93 Received Heat Transfer 1292 | 42 . 9 . . 431 315 495 Effects 2 | . . . . . . 2 . Shutdowns 1 | . . . . . . 1 . Interference 1 | . . . . . . 1 . Siege Activations . | . . . . . . . . Robots Corrupted 6 | . . . . . . . 6 Combat Hostiles 3 | . . . . . . . 3 Parts Fried 11 | . . . . . . . 11 Impact Corruptions 20 | . . . . . . . 20 Robots Melted . | . . . . . . . . Combat Hostiles . | . . . . . . . . Parts Melted 3 | 1 . . . . . 2 . Heat Transferred 1426 | 475 . . . . 148 703 100 Parts Sabotaged . | . . . . . . . . Parts Stolen . | . . . . . . . . Parts Stripped . | . . . . . . . . Power Chain Reactions 1 | . . . . . . . 1 Alert | -11 -10 -10 -10 -9 -8 -7 -7 ------- Run | Yrd Mat Min Exi Min Mat Fac Sto Peak Influence 284 | 45 44 61 . 23 284 226 217 Initial 84 | . 29 16 . . . 60 84 Average 106 | 10 41 27 . 11 181 136 101 Maximum Alert Level 1 | . . . . . 1 1 1 Low Security (%) 85 | 100 100 100 . 100 52 85 99 Level 1 14 | . . . . . 47 14 . Level 2 . | . . . . . . . . Level 3 . | . . . . . . . . Level 4 . | . . . . . . . . Level 5 . | . . . . . . . . High Security . | . . . . . . . . Max Security . | . . . . . . . . Squads Dispatched 17 | . 3 . . . 3 5 6 Investigation 2 | . 1 . . . 1 . . Extermination 1 | . . . . . . . 1 Reinforcement 10 | . 2 . . . 2 2 4 Assault . | . . . . . . . . Garrison 4 | . . . . . . 3 1 Intercept . | . . . . . . . . Searches Triggered . | . . . . . . . . Construction Impeded . | . . . . . . . . Haulers Reinforced 5 | . . . . . . 2 3 Active Scanning Responses . | . . . . . . . . Cargo Convoy Interrupts . | . . . . . . . . Stealth | -11 -10 -10 -10 -9 -8 -7 -7 --------- Run | Yrd Mat Min Exi Min Mat Fac Sto Distress Signals 7 | . . . . 1 3 2 1 Communications Jammed . | . . . . . . . . Distress Signals . | . . . . . . . . Times Spotted 67 | 1 2 2 . 5 23 18 16 Peak Tracking Total 6 | 1 1 2 . 4 5 6 4 Tactical Retreats 3 | . . 1 . 1 . 1 . Traps | -11 -10 -10 -10 -9 -8 -7 -7 ------- Run | Yrd Mat Min Exi Min Mat Fac Sto Traps Triggered 1 | . . . . . 1 . . Indirectly . | . . . . . . . . Trap Hack Attempts . | . . . . . . . . Triggered . | . . . . . . . . Disarmed . | . . . . . . . . Reprogrammed . | . . . . . . . . Reused . | . . . . . . . . Traps Extracted . | . . . . . . . . Installed . | . . . . . . . . Triggered . | . . . . . . . . Most Traps Carried 1 | . . . . 1 1 . . Machines | -11 -10 -10 -10 -9 -8 -7 -7 ---------- Run | Yrd Mat Min Exi Min Mat Fac Sto Machines Disabled 1 | . . . . . 1 . . Max in Single Turn 1 | . . . . . 1 . . Machines Repaired . | . . . . . . . . Machines Dismantled . | . . . . . . . . Machines Sabotaged . | . . . . . . . . Overloaded Fab Kills . | . . . . . . . . Hacking | -11 -10 -10 -10 -9 -8 -7 -7 --------- Run | Yrd Mat Min Exi Min Mat Fac Sto Machines Accessed 15 | . 1 . 5 . 3 2 4 Terminals 6 | . . . . . 2 1 3 Fabricators . | . . . . . . . . Repair Stations 3 | . . . . . 1 1 1 Recycling Units 1 | . 1 . . . . . . Scanalyzers . | . . . . . . . . Garrison Access . | . . . . . . . . Total Hacks 78 | . 5 . 50 . 5 8 10 Successful 68 | . 5 . 50 . 2 5 6 Failed 8 | . . . . . 3 3 2 Catastrophic 2 | . . . . . . 1 1 Database Lockouts 2 | . . . . . . . 2 Manual 1 | . . . 1 . . . . Terminals 14 | . . . . . 2 4 8 Fabricators . | . . . . . . . . Repair Stations 9 | . . . . . 3 4 2 Recycling Units 5 | . 5 . . . . . . Scanalyzers . | . . . . . . . . Garrison Access . | . . . . . . . . Terminal Hacks 58 | . . . 50 . 1 2 5 Record 54 | . . . 49 . . 2 3 Alert Level 2 | . . . . . 1 . 1 Maintenance Status 1 | . . . . . . . 1 Derelict Proto ID Bank 1 | . . . 1 . . . . Fabricator Hacks . | . . . . . . . . Repair Station Hacks 5 | . . . . . 1 3 1 Scan Component 4 | . . . . . 1 2 1 Repair 1 | . . . . . . 1 . Recycling Unit Hacks 5 | . 5 . . . . . . Recycle Component 3 | . 3 . . . . . . Process 1 | . 1 . . . . . . Retrieve Matter 1 | . 1 . . . . . . Scanalyzer . | . . . . . . . . Garrison Access Hacks . | . . . . . . . . Unauthorized Hacks . | . . . . . . . . Terminals . | . . . . . . . . Fabricators . | . . . . . . . . Repair Stations . | . . . . . . . . Recycling Units . | . . . . . . . . Scanalyzers . | . . . . . . . . Garrison Access . | . . . . . . . . Data Cores Recovered . | . . . . . . . . Used . | . . . . . . . . Hacking Detections 4 | . 1 . . . . 1 2 Full Trace Events . | . . . . . . . . Feedback Events . | . . . . . . . . Feedback Blocked . | . . . . . . . . Robot Schematics Acquired . | . . . . . . . . Robots Built . | . . . . . . . . Authchips . | . . . . . . . . Time . | . . . . . . . . Total Robot Build Rating . | . . . . . . . . Part Schematics Acquired . | . . . . . . . . Parts Built . | . . . . . . . . Authchips . | . . . . . . . . Time . | . . . . . . . . Total Part Build Rating . | . . . . . . . . Parts Repaired 1 | . . . . . . 1 . Time 26 | . . . . . . 26 . Parts Recycled 3 | . 3 . . . . . . Recycled Matter 68 | . 68 . . . . . . Retrieved Matter 68 | . 68 . . . . . . Retrieved Components . | . . . . . . . . Parts Scanalyzed . | . . . . . . . . Part Schematics Acquired . | . . . . . . . . Parts Damaged . | . . . . . . . . Bothacking | -11 -10 -10 -10 -9 -8 -7 -7 ------------ Run | Yrd Mat Min Exi Min Mat Fac Sto Used RIF Installer . | . . . . . . . . Robots Hacked . | . . . . . . . . Non-combat . | . . . . . . . . Combat . | . . . . . . . . Robot Hacks Applied . | . . . . . . . . Relay Couplers Released 4 | . . . . . . 4 . Programmers 4 | . . . . . . 4 . Fabnet Peak Effective % . | . . . . . . . . Robots Rewired . | . . . . . . . . Allies Hacked . | . . . . . . . . Hacks Repelled . | . . . . . . . . Allies | -11 -10 -10 -10 -9 -8 -7 -7 -------- Run | Yrd Mat Min Exi Min Mat Fac Sto Total Allies . | . . . . . . . . Largest Group . | . . . . . . . . Highest-Rated Group . | . . . . . . . . Highest-Rated Ally . | . . . . . . . . Total Orders . | . . . . . . . . Ally Attacks . | . . . . . . . . Total Damage . | . . . . . . . . Kills . | . . . . . . . . Allies Corrupted . | . . . . . . . . Allies Melted . | . . . . . . . . Intel | -11 -10 -10 -10 -9 -8 -7 -7 ------- Run | Yrd Mat Min Exi Min Mat Fac Sto Robot Analysis Total . | . . . . . . . . Derelict Logs Recovered 1 | . . . . 1 . . . Drone Launches . | . . . . . . . . Drone Recoveries . | . . . . . . . . Exploration | -11 -10 -10 -10 -9 -8 -7 -7 ------------- Run | Yrd Mat Min Exi Min Mat Fac Sto Turns Passed 4224 | 231 176 107 580 428 882 676 1144 Spaces Moved 2531 | 136 136 84 474 334 457 406 504 Core 76 | 19 . . . . 3 3 51 Treads 333 | . . . . . 239 . 94 Legs 2114 | 113 136 84 474 334 215 403 355 Wheels 4 | 4 . . . . . . . Hover . | . . . . . . . . Flight 4 | . . . . . . . 4 Fastest Speed 50 | 50 120 120 120 120 90 50 120 Average Speed 132 | 109 120 120 120 120 136 127 165 Slowest Speed 550 | 120 120 120 120 120 200 250 550 Overloaded Moves . | . . . . . . . . Propulsion Burnouts . | . . . . . . . . Robots Hopped . | . . . . . . . . Cave-ins Triggered . | . . . . . . . . Exploration Rate (%) 40 | 7 23 51 72 62 40 10 61 Regions Visited 7 Branch Regions 4 Pre-discovered Areas 2 | . . . 1 1 . . . Known Exits Taken . | . . . . . . . . Unknown Exits Taken 7 | 1 1 1 1 1 1 1 . Scrap Searched 1 | . . 1 . . . . . Spaces Dug 6 | . . . . 6 . . . Terrain Destroyed 67 | . . . . 31 30 . 6 Melee . | . . . . . . . . Projectile 1 | . . . . . . . 1 AOE 66 | . . . . 31 30 . 5 Terrain Rammed . | . . . . . . . . Walls Destroyed . | . . . . . . . . Machines Disabled . | . . . . . . . . Actions | -11 -10 -10 -10 -9 -8 -7 -7 --------- Run | Yrd Mat Min Exi Min Mat Fac Sto Total 3045 | 192 145 92 484 352 600 470 710 Wait 125 | 17 . 2 8 3 6 5 84 Move 2524 | 135 135 83 473 333 456 405 504 Hop . | . . . . . . . . Pick Up 55 | 11 4 2 2 5 21 1 9 Fast Attach 35 | 1 . . . 1 9 7 17 Attach 28 | 10 . . . . 7 . 11 Detach 7 | 3 . . . . . . 4 Swap 22 | . 3 . 1 1 14 2 1 Drop 40 | 1 . 5 . 4 19 2 9 Fire 167 | 14 2 . . 5 67 45 34 Melee 34 | . . . . . . . 34 Ram 2 | . . . . . . . 2 Kick 4 | . 1 . . . . 3 . Crush 2 | . . . . . 1 . 1 Escape Stasis . | . . . . . . . . Rewire . | . . . . . . . . Trap . | . . . . . . . . Miscellaneous . | . . . . . . . . Route ------- -11/Scrapyard -10/Materials -10/Mines (discovered 2 exits: [*Mat] / *Exi) -10/Exiles -9/Mines -8/Materials -7/Factory -7/Storage History --------- Turn | Location | Event 2 | -11/Scrapyard | Met Revision 17 160 | -11/Scrapyard | Discovered new exit (range 8) 232 | -11/Scrapyard | Entered Materials 319 | -10/Materials | Build established: Mutant 352 | -10/Materials | Discovered new exit (range 13) 359 | -10/Materials | Met 8R-AWN 408 | -10/Materials | Entered Mines 408 | -10/Mines | Discovered new exit (range 8) 410 | -10/Mines | Followed 8R-AWN into the Mines 428 | -10/Mines | Met a Derelict bent on vengeance 509 | -10/Mines | Discovered new exit (range 5) 515 | -10/Mines | Entered Exiles 551 | -10/Exiles | Welcomed by 8R-AWN 573 | -10/Exiles | Met EX-HEX 628 | -10/Exiles | Met EX-DEC 664 | -10/Exiles | Learned location of Zion (-7) 719 | -10/Exiles | Discovered new exit (range 14) 832 | -10/Exiles | Met EX-BIN 864 | -10/Exiles | Aligned with FarCom system 865 | -10/Exiles | Given EX-Vault access code 923 | -10/Exiles | Opened EX-Vault 932 | -10/Exiles | Found Modified TNC 960 | -10/Exiles | Warned to stay clear of 0b10 Research branches 1095 | -10/Exiles | Left Exiles lab with Modified TNC 1095 | -10/Exiles | Entered Mines 1188 | -9/Mines | Found a hidden stash of uninstalled traps 1210 | -9/Mines | Assembled infested the area 1300 | -9/Mines | Discovered new exit (range 10) 1523 | -9/Mines | Entered Materials 1523 | -8/Materials | Evolved 4 slots: Power x1, Utility x3 1823 | -8/Materials | Build established: Scavenger-Skirmisher 2225 | -8/Materials | Lost 9 parts (2p2n2u3w) 2379 | -8/Materials | Discovered new exit (range 10) 2405 | -8/Materials | Entered Factory 2405 | -7/Factory | Evolved 2 slots: Power x1, Weapon x1 2531 | -7/Factory | Build established: Scavenger-Mutant 2534 | -7/Factory | Repaired Lgt. Armor Plating 2766 | -7/Factory | Garrison activated, responded to threat 2953 | -7/Factory | Lost 3 parts (1n2u) 3058 | -7/Factory | Discovered new exit (range 13) 3062 | -7/Factory | Lost 4 parts (2p2w) 3081 | -7/Factory | Entered Storage 3518 | -7/Storage | Lost 3 parts (1p1n1w) 3561 | -7/Storage | Build established: Assassin 3645 | -7/Storage | Central database locked down 3664 | -7/Storage | Core integrity fell below 50% 3871 | -7/Storage | System corruption reached 10% 3885 | -7/Storage | Core integrity fell below 20% 3903 | -7/Storage | Lost 4 parts (1p2n1w) 4038 | -7/Storage | Central database locked down 4209 | -7/Storage | Garrison activated, responded to threat 4210 | -7/Storage | Build established: Scavenger-Skirmisher 4225 | -7/Storage | Destroyed by Y-54 Guardian with Gatling Laser Last Messages --------------- Acquired 42 matter. System corrupted: Matter fused (-6). Acquired Lgt. Treads. Dropped Lgt. Treads. Acquired Lgt. Treads. System corrupted: Heat flow error (+100). W-25 Informer calls for garrison support. ALERT: Activating Garrison Access S001. W-25 Informer sends out distress signal. Flak Gun destroyed. System corrupted: Matter fused (-6). A-02 Transporter calls for reinforcements. ALERT: Hostile activity reported, dispatching reinforcements to area. A-02 Transporter calls for reinforcements. ALERT: Hostile activity reported, dispatching reinforcements to area. [Achievement: Oops] [Achievement: First Step to Greatness] [Achievement: 5k Club] Map ----- +----------------------------------------------------+ | ???????????????????# """ """ """ + ## """ R"#??? | | ??????????????????## """ """ """ # + """ """#?#? | | ??????????##??????# # # """ "" #??? | | ???????????#?????### # # """ ####??? | | ??????????????????#######+######## + """ #?#???# | | ?????????????#??????#???# #??#???# ### #?????# | | ??????????????##??????#?# ######## #?# #?????# | | ???????????????#?##??##?# #?# #?????# | | ????????################# #######?# #?????# | | ????????+ #???????#######?#???# | | ????????# #?#???????#??????#??? | | ????????# #??#??????????????#?? | | ????????# #####+#######??#?????"?????????? | | ????????# ??# """ ##??#?#?"???????????#? | | ????????# ??? + "R" #??#?????? ? ???#????? | | ????????#+#???#???# " " #???????? ?????????#?? | | ????????????????#?# #?#?????? ??????#?#??# | | ?????????? ? ????## """ ! = #????#????????????#??? | | ????????? ??? ?#??# """ ! [ #?#????"???????#?????? | | ??????????????????# """ != #??#?????????????????# | | ?????????? ??? ???# #?????????? ???????#?# | | ???????##?????????###+#######?????????? ?????????? | | ???????# ######## ################+##+##????#? | | ??? r g #????#? | | ??? ag Y a +?????? | | ??? k ^ @k #?????? | | ?????### ########a######+########## #??? ?? | | ???????##?????????? ??????? ??????# ####### | | ??????????? ?????? [ ???????????????# ## | | ????????????????? ???g?????? ????# ^ ## | | ???????????????? """ ""????g?? ???????# a ## | | ???????????????" """ """ #?????"??w???# ## a | | ??????????????## """ """??g??????"g???# ## | | ????????????#??# ???g????????#### ## | | ???????????????+?? ???g?gg?????+ + | | ??????????????????Y#"??????????????### #### | | ?????????????????###"????????????????# #??###### | | ?????????????????#??"????????????????# ######### | | ?????????????????#???????????????????# | | ???????????????Y??????????????????? + | | ?????????????????????????????????????# | | ??????????????????????????????Y??????# | | ?????????????????????????????????????# | | ???????????????????????????????????? ########## | | ???????????????????????????????????#####?????????? | | ?????????????????????????????????????????????????? | | ?????????????????????????????????????????????????? | | ?????????????????????????????????????????????????? | | ?????????????????????????????????????????????????? | | | +----------------------------------------------------+ Best States ------------- Heat Dissipation 48 Energy Generation 35 Energy Capacity 480 Matter Stores 410 Matter Capacity 450 Sight Range 20 Terrain Scan Range 16 Terrain Scan Density 10 Armor Coverage 225 Weapon Cycling 30 Evasion (%) 57 Targeting Accuracy 6 Recoil Reduction 4 Item Schematics ----------------- None Robot Schematics ------------------ None Fabricated ------------ Nothing Alien Tech Used ----------------- None Achievements -------------- 5k Club Crack Shot First Step to Greatness I Survived The Infestation Librarian Made in Tau Ceti IV More Dakka Please Novice Programmer Oops Part-time Mechanic Power Corrupts Serviceable Loadout Storm Trooper System Compromised Tourist Troublemaker Uninvited Guest Challenges ------------ None Game ------ Seed DrainedTransmissionShovel Manual? 0 Play Time 01:47:15 Cumulative 1.7 hours Start 2024.11.13 @ 04:51:24 End 2024.11.13 @ 07:20:06 Sessions 1 Manual Loads 0 Difficulty Rogue Special Mode None Game No. 1 Rogue 1 Adventurer 0 Explorer 0 Win Type - Total 0 Types 0/0/0/0/0/0/0/0/0 Lore% 5 Gallery% 4 Achievement% 6 Wizard Run 0 Options --------- Layout 1 ASCII 0 Keyboard 0 Movement Numpad Keybinds 0 Fullscreen 2 Font 24/Smallcaps Map View 50x35 Zoom Use 0% Tactical HUD 0 Map Filters NONE Filters NONE Steam 0 RUN: c1bb92ff-d0d5-43e3-a64d-cbd87105b7b3